Cogmind - Beta 14 @@@ ROGUE MODE // 2024.08.26 @ 20:04:47 Player: star Result: Self-destructed Performance ------------- Evolutions (2) 1000 Regions Visited (3) 600 Robots Destroyed (23) 115 Value Destroyed (814) 814 Prototype IDs (0) 0 Alien Tech Used (0) 0 Bonus (0) 0 TOTAL SCORE: 2529 Bonus ------- None Cogmind --------- Core Integrity 550/550 Matter 277/300 Energy 200/200 System Corruption 0% Temperature Cool (0) Movement Walking (120) Location -8/Materials Parts ------- > --- POWER (1) -------- Subdweller Power Source > --- PROPULSION (2) --- Aluminum Leg Aluminum Leg > --- UTILITY (2) ------ (None) > --- WEAPON (6) ------- Dirty Datajack > --- INVENTORY (5) ---- Scrap Shield Heavy EM Pulse Gun Subdweller Beam Cannon Grenade Launcher Peak State ------------ > --- POWER ------------ Ion Engine > --- PROPULSION ------- Aluminum Leg Aluminum Leg > --- UTILITY ---------- Scrap Shield > --- WEAPON ----------- Heavy EM Pulse Gun Battle Rifle > --- INVENTORY -------- Scrap Shield Heavy EM Pulse Gun Subdweller Beam Cannon Subdweller Shrapnel Launcher [Rating: 12] Favorites ----------- Power Ion Engine Engine Ion Engine Propulsion Aluminum Leg Treads Light Treads Leg Aluminum Leg Utility Scrap Shield Storage Small Storage Unit Protection Scrap Shield Weapon Heavy EM Pulse Gun Energy Gun Heavy EM Pulse Gun Energy Cannon Subdweller Beam Cannon Ballistic Gun Assault Rifle Launcher Grenade Launcher Special Weapon Flamer Special Melee Weapon Dirty Datajack Build | -11 -10 -10 -8 ------- Run | Yrd Mat Sub Mat Slots Evolved 4 | . . . 4 Power . | . . . . Propulsion . | . . . . Utility . | . . . . Weapon 4 | . . . 4 Parts Attached 22 | 6 2 14 . Power 2 | 1 . 1 . Engine 2 | 1 . 1 . Core . | . . . . Reactor . | . . . . Propulsion 4 | 2 . 2 . Treads 2 | 2 . . . Leg 2 | . . 2 . Wheel . | . . . . Hover . | . . . . Flight . | . . . . Utility 2 | 1 . 1 . Device . | . . . . Storage 1 | 1 . . . Processor . | . . . . Hackware . | . . . . Protection 1 | . . 1 . Artifact . | . . . . Weapon 14 | 2 2 10 . Energy Gun 5 | . 2 3 . Energy Cannon 1 | . . 1 . Ballistic Gun 3 | 2 . 1 . Ballistic Cannon . | . . . . Launcher 3 | . . 3 . Special Weapon 1 | . . 1 . Impact Weapon . | . . . . Slashing Weapon . | . . . . Piercing Weapon . | . . . . Special Melee Weapon 1 | . . 1 . Unidentified Prototypes . | . . . . Corrupted Parts 1 | . . 1 . System Corruption 1 | . . 1 . Parts Lost 8 | . 1 7 . Power 1 | . . 1 . Propulsion 1 | . . 1 . Utility 1 | . . 1 . Weapon 5 | . 1 4 . Highest Loss Streak 3 | . 1 3 . To Critical Strikes . | . . . . Average Slot Usage (%) 83 | . 82 83 . Engine 13 | . 14 13 . Treads 6 | . 28 . . Leg 20 | . . 26 . Storage 3 | . 14 . . Protection 10 | . . 13 . Energy Gun 17 | . 10 19 . Energy Cannon 3 | . . 3 . Ballistic Gun 5 | . 15 3 . Peak Build Rating 12 | 6 8 12 . Average Rating 9 | 4 6 10 . On Entrance 6 | . 6 8 10 Naked Turns . | . . . . Heaviest Build 34 | 14 16 34 . Greatest Support 40 | 40 40 40 . Greatest Overweight (x) 1 | . . 1 . Average Overweight (x) . | . . . . Largest Inventory Capacity 8 | 8 8 8 . Average Capacity 5 | 6 8 5 . Most Carried 6 | 3 6 6 . Average Carried 4 | 1 4 4 . Final Capacity 8 | 8 8 5 5 Final Carried 6 | 3 6 5 5 Class Distribution -------------------- 100% | Mutant Dominant Class ---------------- Mutant | -10/Materials Mutant | -10/Subcaves Mutant | -8/Materials Resources | -11 -10 -10 -8 ----------- Run | Yrd Mat Sub Mat Matter Collected 876 | 236 231 409 . Remotely . | . . . . Salvage Created 768 | . 287 481 . Parts 61 | . 16 45 . Haulers Intercepted . | . . . . Recyclers Shooed . | . . . . Parts Field Recycled . | . . . . Retrieved Matter . | . . . . Parts Self-Destructed 12 | . . 12 . Prevented . | . . . . Kills | -11 -10 -10 -8 ------- Run | Yrd Mat Sub Mat Combat Hostiles Destroyed 23 | . 7 16 . Guns 13 | . 7 6 . Cannons 1 | . . 1 . AOE 9 | . . 9 . Classes Destroyed 4 | . 1 3 . Swarmer 3 | . . 3 . Grunt 7 | . 7 . . Cobbler 1 | . . 1 . Subdweller 13 | . . 13 . Best Kill Streak 4 | . 2 4 . Combat Bots Only 4 | . 2 4 . Max Kills in Single Turn 3 | . 1 3 . Gunslinging . | . . . . Exploded 3 | . . 3 . Melee . | . . . . Uniques/NPCs Destroyed . | . . . . Combat | -11 -10 -10 -8 -------- Run | Yrd Mat Sub Mat Hostile Shots Fired 124 | . 48 76 . Missed 27 | . 9 18 . Damage Taken 1613 | . 485 1128 . Core 225 | . 76 149 . Absorbed by Shields . | . . . . Core Remaining (%) 55 | 100 . 10 . Volleys Fired 94 | . 37 57 . Largest 2 | . 2 2 . Hottest 145 | . 90 145 . Shots Fired 158 | . 70 88 . Gun 127 | . 70 57 . Cannon 7 | . . 7 . Launcher 20 | . . 20 . Special 4 | . . 4 . Kinetic 85 | . 68 17 . Thermal 11 | . . 11 . Explosive 12 | . . 12 . Electromagnetic 50 | . 2 48 . Robot Hit Streak 40 | . 13 40 . Robot Miss Streak 3 | . 3 3 . Penetration Max . | . . . . Secondary Targets . | . . . . Shots Hit Robots 108 | . 51 57 . Core Hits 45 | . 15 30 . Critical Kills 1 | . . 1 . Critical Parts Destroyed . | . . . . Critical Strikes 4 | . . 4 . Burn 2 | . . 2 . Meltdown 1 | . . 1 . Corrupt 1 | . . 1 . Melee Attacks . | . . . . Impact . | . . . . Slashing . | . . . . Piercing . | . . . . Sneak Attacks . | . . . . Combat Hostiles . | . . . . Follow-up Attacks . | . . . . Damage Inflicted 2267 | . 660 1607 . Guns 1078 | . 660 418 . Cannons 81 | . . 81 . Explosions 1064 | . . 1064 . Melee . | . . . . Ramming . | . . . . Kinetic 1237 | . 629 608 . Thermal 125 | . . 125 . Explosive 484 | . . 484 . Electromagnetic 421 | . 31 390 . Impact . | . . . . Slashing . | . . . . Piercing . | . . . . Highest Corruption 1 | . . 1 . Average Corruption 1 | . . 1 . Corruption Purged . | . . . . Corruption Blocked . | . . . . Effects 1 | . . 1 . Matter Fused 1 | . . 1 . Overload Shots . | . . . . Overflow Damage . | . . . . Projectiles . | . . . . Explosions . | . . . . Melee . | . . . . Knockbacks . | . . . . Impact . | . . . . Kinetic . | . . . . Secondary . | . . . . Self-Inflicted Damage 23 | . . 23 . Shots 2 | . . 2 . Rammed . | . . . . Targets Rammed . | . . . . Kicked . | . . . . Crushed . | . . . . Highest Temperature 30 | . 30 3 . Average Temperature 3 | . 6 1 . Received Heat Transfer 707 | . 270 437 . Siege Activations . | . . . . Robots Corrupted . | . . . . Combat Hostiles . | . . . . Parts Fried 1 | . . 1 . Impact Corruptions . | . . . . Robots Melted 1 | . . 1 . Combat Hostiles . | . . . . Parts Melted 2 | . . 2 . Heat Transferred 751 | . . 751 . Parts Sabotaged . | . . . . Parts Stolen . | . . . . Parts Stripped . | . . . . Power Chain Reactions . | . . . . Alert | -11 -10 -10 -8 ------- Run | Yrd Mat Sub Mat Peak Influence 172 | . 172 . . Initial 15 | . . . 15 Average 70 | . 79 . . Maximum Alert Level . | . . . . Low Security (%) 100 | 100 100 . . Level 1 . | . . . . Level 2 . | . . . . Level 3 . | . . . . Level 4 . | . . . . Level 5 . | . . . . High Security . | . . . . Max Security . | . . . . Squads Dispatched 2 | . 2 . . Investigation 2 | . 2 . . Extermination . | . . . . Reinforcement . | . . . . Assault . | . . . . Garrison . | . . . . Intercept . | . . . . Searches Triggered . | . . . . Construction Impeded . | . . . . Haulers Reinforced . | . . . . Active Scanning Responses . | . . . . Cargo Convoy Interrupts . | . . . . Stealth | -11 -10 -10 -8 --------- Run | Yrd Mat Sub Mat Distress Signals 3 | . 3 . . Communications Jammed . | . . . . Distress Signals . | . . . . Times Spotted 32 | . 14 18 . Peak Tracking Total 4 | . 4 3 . Tactical Retreats 1 | . 1 . . Traps | -11 -10 -10 -8 ------- Run | Yrd Mat Sub Mat Traps Triggered 1 | . 1 . . Indirectly . | . . . . Trap Hack Attempts . | . . . . Triggered . | . . . . Disarmed . | . . . . Reprogrammed . | . . . . Reused . | . . . . Traps Extracted . | . . . . Installed . | . . . . Triggered . | . . . . Machines | -11 -10 -10 -8 ---------- Run | Yrd Mat Sub Mat Machines Disabled . | . . . . Max in Single Turn . | . . . . Machines Repaired . | . . . . Machines Dismantled . | . . . . Machines Sabotaged . | . . . . Overloaded Fab Kills . | . . . . Hacking | -11 -10 -10 -8 --------- Run | Yrd Mat Sub Mat Machines Accessed 1 | . 1 . . Terminals 1 | . 1 . . Fabricators . | . . . . Repair Stations . | . . . . Recycling Units . | . . . . Scanalyzers . | . . . . Garrison Access . | . . . . Total Hacks 6 | . 6 . . Successful 1 | . 1 . . Failed 5 | . 5 . . Catastrophic . | . . . . Database Lockouts . | . . . . Manual . | . . . . Terminals 6 | . 6 . . Fabricators . | . . . . Repair Stations . | . . . . Recycling Units . | . . . . Scanalyzers . | . . . . Garrison Access . | . . . . Terminal Hacks 1 | . 1 . . Robot Analysis 1 | . 1 . . Fabricator Hacks . | . . . . Repair Station Hacks . | . . . . Recycling Unit Hacks . | . . . . Scanalyzer . | . . . . Garrison Access Hacks . | . . . . Unauthorized Hacks . | . . . . Terminals . | . . . . Fabricators . | . . . . Repair Stations . | . . . . Recycling Units . | . . . . Scanalyzers . | . . . . Garrison Access . | . . . . Data Cores Recovered . | . . . . Used . | . . . . Hacking Detections 1 | . 1 . . Full Trace Events 1 | . 1 . . Feedback Events . | . . . . Feedback Blocked . | . . . . Robot Schematics Acquired . | . . . . Robots Built . | . . . . Authchips . | . . . . Time . | . . . . Total Robot Build Rating . | . . . . Part Schematics Acquired . | . . . . Parts Built . | . . . . Authchips . | . . . . Time . | . . . . Total Part Build Rating . | . . . . Parts Repaired . | . . . . Time . | . . . . Parts Recycled . | . . . . Recycled Matter . | . . . . Retrieved Matter . | . . . . Retrieved Components . | . . . . Parts Scanalyzed . | . . . . Part Schematics Acquired . | . . . . Parts Damaged . | . . . . Bothacking | -11 -10 -10 -8 ------------ Run | Yrd Mat Sub Mat Used RIF Installer . | . . . . Robots Hacked . | . . . . Non-combat . | . . . . Combat . | . . . . Robot Hacks Applied . | . . . . Relay Couplers Released . | . . . . Fabnet Peak Effective % . | . . . . Robots Rewired . | . . . . Allies Hacked . | . . . . Hacks Repelled . | . . . . Allies | -11 -10 -10 -8 -------- Run | Yrd Mat Sub Mat Total Allies . | . . . . Largest Group . | . . . . Highest-Rated Group . | . . . . Highest-Rated Ally . | . . . . Total Orders . | . . . . Ally Attacks . | . . . . Total Damage . | . . . . Kills . | . . . . Allies Corrupted . | . . . . Allies Melted . | . . . . Intel | -11 -10 -10 -8 ------- Run | Yrd Mat Sub Mat Robot Analysis Total 1 | . 1 . . Derelict Logs Recovered . | . . . . Drone Launches . | . . . . Drone Recoveries . | . . . . Exploration | -11 -10 -10 -8 ------------- Run | Yrd Mat Sub Mat Turns Passed 2614 | 72 566 1976 . Spaces Moved 1230 | 43 243 944 . Core 7 | 7 . . . Treads 308 | 36 243 29 . Legs 915 | . . 915 . Wheels . | . . . . Hover . | . . . . Flight . | . . . . Fastest Speed 50 | 50 160 120 . Average Speed 179 | 142 160 186 . Slowest Speed 190 | 160 160 190 . Overloaded Moves . | . . . . Propulsion Burnouts . | . . . . Robots Hopped . | . . . . Cave-ins Triggered . | . . . . Exploration Rate (%) 20 | 4 31 46 1 Regions Visited 3 Branch Regions 1 Pre-discovered Areas . | . . . . Known Exits Taken . | . . . . Unknown Exits Taken 3 | 1 1 1 . Scrap Searched 8 | . . 8 . Spaces Dug 61 | . . 61 . Terrain Destroyed 142 | . . 142 . Melee . | . . . . Projectile 1 | . . 1 . AOE 141 | . . 141 . Terrain Rammed . | . . . . Walls Destroyed . | . . . . Machines Disabled . | . . . . Actions | -11 -10 -10 -8 --------- Run | Yrd Mat Sub Mat Total 1465 | 51 349 1065 . Wait 99 | . 65 34 . Move 1227 | 42 242 943 . Hop . | . . . . Pick Up 12 | 3 3 6 . Fast Attach 9 | 6 1 2 . Attach 5 | . . 5 . Detach . | . . . . Swap 8 | . 1 7 . Drop 4 | . . 4 . Fire 94 | . 37 57 . Melee . | . . . . Ram . | . . . . Kick . | . . . . Crush . | . . . . Escape Stasis . | . . . . Rewire . | . . . . Trap . | . . . . Miscellaneous 7 | . . 7 . Route ------- -11/Scrapyard -10/Materials (discovered 2 exits: [*Mat] / [*Sub]) -10/Subcaves (discovered 2 exits: [*Mat x2]) -8/Materials History --------- Turn | Location | Event 8 | -11/Scrapyard | Discovered new exit (range 15) 73 | -11/Scrapyard | Entered Materials 302 | -10/Materials | Build established: Mutant 402 | -10/Materials | Discovered new exit (range 10) 619 | -10/Materials | Discovered new exit (range 4) 639 | -10/Materials | Entered Subcaves 671 | -10/Subcaves | Discovered new exit (range 5) 724 | -10/Subcaves | Lost 3 parts (1n2w) 1365 | -10/Subcaves | Shifting Twisted Machinery released Sub. Monowheel 1366 | -10/Subcaves | Shifting Twisted Machinery released Sub. Monowheel 1448 | -10/Subcaves | Shifting Twisted Machinery released Sub. Power Source 1658 | -10/Subcaves | Ambushed by angry Subdweller bent on revenge 1924 | -10/Subcaves | Ambushed by Subdweller buried in earth 1932 | -10/Subcaves | Ambushed by Subdweller buried in earth 1950 | -10/Subcaves | Ambushed by Subdweller buried in earth 1950 | -10/Subcaves | Ambushed by Subdweller buried in earth 1958 | -10/Subcaves | Core integrity fell below 50% 2597 | -10/Subcaves | Discovered new exit (range 9) 2615 | -10/Subcaves | Entered Materials 2615 | -8/Materials | Evolved 4 slots: Weapon x4 2615 | -8/Materials | Self-destructed Last Messages --------------- 02555_ Flamer destroyed. 02556_ 4C-XDB(R) destroyed. 02563_ Acquired Corrupted Sub. Power Source. 02563_ Integrated Corrupted Sub. Power Source (+1). 02563_ Complication: Energy sink damages Corrupted Sub. Power Source (-10). 02569_ Scrap Shield destroyed. 02571_ System corrupted: Matter fused (-5). 02571_ Disposable Heat Sink fried. 02571_ FL-GIN(R) destroyed. 02575_ Acquired Dirty Datajack. 02578_ Acquired 52 matter. 02579_ Acquired 25 matter. 02594_ Acquired 10 matter. 02597_ EXIT=FOUND 02613_ Hvy. EM Pulse Gun destroyed. 02615_ Critical hit (Meltdown: +260). PARAMETERS=WEAPON+4 LOCATION=UNKNOWN GOAL=ESCAPE Map ----- +----------------------------------------------------+ | ????????????????????????????????????????? | | ????????????????????????????????????????? | | ????????????????????????????????????????? | | ????????????????????????????????????????? | | ????????????????????????????????????????? | | ????????????????????????????????????????? | | ????????????????????????????????????????? | | ????????????????????????????????????????? | | ????????????????????????????????????????? | | ????????????????????????????????????????? | | ????????????????????????????????????????? | | ????????????????????????????????????????? | | ????????????????????????????????????????? | | ????????????????????????????????????????? | | ????????????????????????????????????????? | | ????????????????????????????????????????? | | ????????????????????????????????????????? | | ????????????????????????????????????????? | | ????????????????????????????????????????? | | ????????????????????????????????????????? | | ????????????????????????????????????????? | | ????????????????????????????????????????? | | ??????????????## ???????????????????????? | | ??????????????# [###+####????????????? | | ??????????????# #????????????? | | ??????????????+ T @ #????????????? | | ??????????????# #????????????? | | ??????????????# ### ##????????????? | | ??????????????###?????# #?????????????? | | ??????????????????????# #?????????????? | | ??????????????????????# ?????????????? | | ??????????????????????# /?????????????? | | ??????????????????????# ?????????????? | | ??????????????????????# ""?????????????? | | ??????????????????????# ""?????????????? | | ?????????????????????? ""?????????????? | | ?????????????????????? ???????????????? | | ?????????????????????? ???????????????? | | ??????????????????????###???????????????? | | ????????????????????????????????????????? | | ????????????????????????????????????????? | | ????????????????????????????????????????? | | ????????????????????????????????????????? | | ????????????????????????????????????????? | | ????????????????????????????????????????? | | ????????????????????????????????????????? | | ????????????????????????????????????????? | | ????????????????????????????????????????? | | ????????????????????????????????????????? | | ????????????????????????????????????????? | +----------------------------------------------------+ Best States ------------- Heat Dissipation 25 Energy Generation 15 Energy Capacity 250 Matter Stores 300 Matter Capacity 300 Sight Range 16 Terrain Scan Density 10 Armor Coverage 800 Evasion (%) 45 Recoil Reduction 2 Item Schematics ----------------- None Robot Schematics ------------------ None Fabricated ------------ Nothing Alien Tech Used ----------------- None Achievements -------------- None Challenges ------------ None Game ------ Seed CargoSmartbombDetector Manual? 0 Play Time 00:14:44 Cumulative 56.6 hours Start 2024.08.26 @ 19:50:10 End 2024.08.26 @ 20:04:47 Sessions 1 Manual Loads 0 Difficulty Rogue Special Mode None Game No. 105 Rogue 105 Adventurer 0 Explorer 0 Win Type - Total 0 Types 0/0/0/0/0/0/0/0/0 Lore% 22 Gallery% 43 Achievement% 35 Wizard Run 0 Options --------- Layout 0 ASCII 0 Keyboard 0 Movement Numpad Keybinds 0 Fullscreen 2 Font 18/SmallcapsGlow Map View 76x50 Zoom Use 0% Tactical HUD 1 Map Filters NONE Filters NONE Steam 1 RUN: 72961ee2-e6f4-4fdd-89fc-a0e932dfd1d0